[Event "Serbian League 2024"]
[Site "Bajina Basta"]
[Date "2024.10.01"]
[Round "5.15"]
[White "Ozsakallioglu, Okan"]
[Black "Bogosavljevic, Boban"]
[Result "0-1"]
[Annotator "TA"]
[ECO "B61"]
[WhiteElo "2349"]
[BlackElo "2486"]
[PlyCount "84"]
[EventDate "2024.09.26"]
[EventType "team-tourn"]
[EventCountry "SRB"]
[SourceTitle "playchess.com"]
[Source "ChessBase"]
[SourceQuality "1"]
[TimeControl "40/5400+30:1800+30"]

{[%evp 19,84,58,92,-31,-29,-29,-26,-20,-33,-56,-31,-43,-51,-48,-17,-33,-41,-40,-36,-85,-60,-62,-51,-48,-51,-62,-59,-94,-89,-97,-80,-128,-134,-143,-144,-143,-125,-126,0,-156,-114,-135,-117,-96,-89,-183,-176,-187,-208,-193,-188,-254,-205,-279,-265,-279,-294,-281,-281,-279,-277,-265,-277,-246,-254,-683,-685]} 1. e4 {[%emt 0:00:04]} c5 {[%emt 0:02:43]} 2. Nf3 {[%emt 0:00:04]} d6 {[%emt 0:00:37]} 3. d4 {[%emt 0:00:04]} cxd4 {[%emt 0:00:07]} 4. Nxd4 {[%emt 0:00:04]} Nf6 {[%emt 0:00:11]} 5. Nc3 {[%emt 0:00:04]} Nc6 {[%emt 0:00:08]} 6. Bg5 {[%emt 0:00:05]} Bd7 {[%emt 0:00:26]} 7. Qd2 {[%emt 0:02:13]} Rc8 {[%emt 0:00:12]} 8. O-O-O {[%emt 0:01:58]} Nxd4 {[%emt 0:00:11]} 9. Qxd4 {[%emt 0:00:02]} Qa5 {[%emt 0:00:09]} 10. f4 {[%emt 0:00:34]} Rxc3 {[%emt 0:00:17]} 11. Qxc3 {[%emt 0:02:39]} ({White has to play} 11. bxc3 $16 e5 (11... Qxa2 $2 12. e5 $18) 12. Qb4 Qxb4 13. cxb4 Nxe4 14. Bc4) 11... Qxc3 $15 {[%emt 0:02:40]} 12. bxc3 {[%emt 0:00:02] [#] Bxf6 is the strong threat.} Nxe4 {[%emt 0:00:11]} 13. Bh4 {[%emt 0:00:02][%cal Bg5h4,Bh4f2,Bf2d4][%mdl 32] Against Nf2. Black has an edge.} Nxc3 {[%emt 0:07:04]} 14. Re1 {[%emt 0:01:22]} e6 {[%emt 0:03:41][%cal Od6d5]} (14... Nxa2+ $2 15. Kd2 $18) 15. Kd2 {[%emt 0:03:21]} Na4 {[%emt 0:01:10]} (15... Nxa2 $2 {is the wrong capture.} 16. Rb1 (16. Ra1 g5 $16) 16... d5 17. Rxb7 $18) 16. Bf2 {[%emt 0:01:56]} d5 {[%emt 0:05:37] Threatens to win with ...Bb4+.} 17. Bd4 {[%emt 0:00:21][%cal Of4f5]} Bd6 {[%emt 0:03:40]} 18. g3 {[%emt 0:01:29]} O-O {[%emt 0:00:21]} 19. Bd3 {[%emt 0:13:12]} (19. Rb1 $15 b6 20. Be2) 19... a6 {[%emt 0:15:08]} 20. Rb1 {[%emt 0:04:33]} Bc6 {[%emt 0:13:22]} 21. Rhe1 {[%emt 0:00:40]} Nc5 {[%emt 0:01:58]} 22. f5 {[%emt 0:22:15]} Nxd3 {[%emt 0:07:19]} 23. cxd3 {[%emt 0:05:45]} exf5 {[%emt 0:00:27]} 24. Be5 {[%emt 0:02:38]} Be7 {[%emt 0:01:55]} 25. h4 {[%emt 0:07:44]} ({White should try} 25. Bd4 Re8 26. Re5) 25... f6 $17 {[%emt 0:01:10]} 26. Bf4 {[%emt 0:00:05]} Kf7 {[%emt 0:02:44]} 27. Kc3 {[%emt 0:00:50]} Bc5 {[%emt 0:03:11]} 28. Be3 {[%emt 0:00:13]} Be7 {[%emt 0:10:40]} 29. Bf4 $1 {[%emt 0:00:21]} Rc8 {[%emt 0:02:12]} 30. Kd4 {[%emt 0:00:12]} Bd8 {[%emt 0:02:01]} 31. Bd6 {[%emt 0:01:21]} Kg6 {[%emt 0:00:37]} 32. Rf1 {[%emt 0:04:57]} (32. a4 $17) 32... Ba5 $19 {[%emt 0:05:35]} 33. h5+ {[%emt 0:07:49]} Kxh5 {[%emt 0:03:24]} 34. Rxf5+ {[%emt 0:00:07]} Kg6 {[%emt 0:00:05]} 35. g4 {[%emt 0:01:20]} (35. Rf3 $142) 35... Rd8 {[%emt 0:03:51]} 36. Bg3 {[%emt 0:03:00]} Bb5 {[%emt 0:01:24]} 37. a4 {[%emt 0:02:45]} Bb6+ {[%emt 0:00:15]} ({But not} 37... Bxa4 38. Rxb7 Bc6 39. Rb8 $17) 38. Kc3 {[%emt 0:00:07]} Rc8+ {[%emt 0:00:11]} 39. Kd2 {[%emt 0:00:09]} Ba5+ {[%emt 0:00:06]} 40. Ke3 {[%emt 0:00:13]} d4+ {[%emt 0:02:19]} 41. Kxd4 {[%emt 0:35:34]} Bb6+ {[%emt 0:31:09] This pair of bishops is nice.} 42. Ke4 $2 {[%emt 0:00:14] [#]} (42. Kd5 Bc6+ (42... Bxd3 43. Rxb6 Bxf5 44. gxf5+ Kxf5 45. Rxb7 $18) 43. Ke6 Re8+ 44. Kd6) 42... Bc6+ {[%emt 0:00:16] Weighted Error Value: White=0.36/Black=0.14 (very precise) .  Mistake:       	White=5     	---        Inaccurate:     	White=2     	Black=1      OK:         	White=10    	Black=17     Best:        	White=1     	Black=2      Strong:       	White=1     	---} 0-1

[Event "Serbian League 2024"]
[Site "Bajina Basta"]
[Date "2024.10.01"]
[Round "5.16"]
[White "Zajic, Milan"]
[Black "Ljepic, Andrej"]
[Result "0-1"]
[Annotator "RC"]
[ECO "C41"]
[WhiteElo "2404"]
[BlackElo "2326"]
[PlyCount "68"]
[EventDate "2024.09.26"]
[EventType "team-tourn"]
[EventCountry "SRB"]
[SourceTitle "playchess.com"]
[Source "ChessBase"]
[SourceQuality "1"]
[TimeControl "40/5400+30:1800+30"]

1. e4 {[%emt 0:00:02]} e5 {[%emt 0:00:12]} 2. Nf3 {[%emt 0:00:02]} d6 {[%emt 0:00:08]} 3. d4 {[%emt 0:00:05]} exd4 {[%emt 0:00:06]} 4. Nxd4 {[%emt 0:00:02]} Nf6 {[%emt 0:00:14]} 5. Nc3 {[%emt 0:00:02]} Be7 {[%emt 0:00:09]} 6. Bf4 {[%emt 0:00:17]} O-O {[%emt 0:00:08]} 7. Qd2 {[%emt 0:00:04]} d5 {[%emt 0:00:09]} 8. Ndb5 {[%emt 0:01:25]} Bb4 {[%emt 0:00:05]} 9. O-O-O {[%emt 0:30:08]} c6 {[%emt 0:01:50]} 10. Nc7 {[%emt 0:03:51]} Nxe4 {[%emt 0:00:05]} 11. Qd4 {[%emt 0:02:33]} Nxc3 {[%emt 0:00:13]} 12. bxc3 {[%emt 0:00:15]} Ba3+ {[%emt 0:00:04]} 13. Kb1 {[%emt 0:10:02]} Bg4 {[%emt 0:00:07]} 14. f3 {[%emt 0:04:55]} Be6 {[%emt 0:00:06]} 15. Nxa8 {[%emt 0:06:05]} Qa5 {[%emt 0:00:09]} 16. Ka1 {[%emt 0:19:30]} c5 {[%emt 0:01:34]} 17. Qd3 {[%emt 0:01:12]} Na6 {[%emt 0:05:55]} 18. Nc7 {[%emt 0:09:50]} c4 {[%emt 0:15:20]} 19. Qd2 {[%emt 0:00:58]} Nxc7 {[%emt 0:00:14]} 20. Bxc7 {[%emt 0:00:02]} Qxc7 {[%emt 0:00:09]} 21. g4 {[%emt 0:00:08]} Rd8 {[%emt 0:20:53]} 22. f4 {[%emt 0:00:06]} Bxg4 {[%emt 0:13:44]} 23. Be2 {[%emt 0:01:25]} Bf5 {[%emt 0:01:49]} 24. Rhg1 {[%emt 0:00:55]} Qb6 {[%emt 0:02:02]} 25. Rb1 {[%emt 0:00:21]} Bb2+ {[%emt 0:00:13]} 26. Rxb2 {[%emt 0:00:02]} Qxg1+ {[%emt 0:00:06]} 27. Rb1 {[%emt 0:00:42]} Qxh2 {[%emt 0:05:40]} 28. Rxb7 {[%emt 0:01:02]} h5 {[%emt 0:13:20]} 29. Qe3 {[%emt 0:01:31]} Be4 {[%emt 0:00:54]} 30. f5 {[%emt 0:01:45]} Rb8 {[%emt 0:02:14]} 31. Rxb8+ {[%emt 0:02:00]} Qxb8 {[%emt 0:00:13]} 32. f6 {[%emt 0:00:50]} Bxc2 {[%emt 0:00:38]} 33. Qg1 {[%emt 0:00:11]} g6 {[%emt 0:01:16]} 34. Qc1 {[%emt 0:00:25]} Be4 {[%emt 0:01:10]} 0-1

[Event "Serbian League 2024"]
[Site "Bajina Basta"]
[Date "2024.10.01"]
[Round "5.17"]
[White "Ivanovic, Dragutin"]
[Black "Roganovic, Milos"]
[Result "0-1"]
[Annotator "TA"]
[ECO "A20"]
[WhiteElo "2308"]
[BlackElo "2434"]
[PlyCount "92"]
[EventDate "2024.09.26"]
[EventType "team-tourn"]
[EventCountry "SRB"]
[SourceTitle "playchess.com"]
[Source "ChessBase"]
[SourceQuality "1"]
[TimeControl "40/5400+30:1800+30"]

{[%evp 9,92,-19,-27,-45,-48,-54,-24,-27,20,22,14,18,12,0,0,0,0,0,-7,-5,16,-9,0,-4,-3,-4,0,20,22,23,47,41,64,34,30,15,25,11,14,0,48,19,22,14,90,80,74,75,77,60,85,22,32,35,24,39,30,0,0,0,0,0,0,0,0,0,0,-145,-141,-167,-164,-157,-149,-213,-196,-273,-264,-489,-481,-611,-547,-1463,-1070,-1512,-1326]} 1. c4 {[%emt 0:00:50]} e5 {[%emt 0:02:06]} 2. g3 {[%emt 0:00:09]} Nf6 {[%emt 0:03:24]} 3. Bg2 {[%emt 0:00:16]} c6 {[%emt 0:00:18]} 4. d3 {[%emt 0:02:24]} d5 {[%emt 0:00:44]} 5. cxd5 {[%emt 0:04:09]} cxd5 {[%emt 0:00:34]} 6. Qa4+ {[%emt 0:00:06]} Nc6 {[%emt 0:05:56]} 7. Nf3 {[%emt 0:00:09]} Bd6 {[%emt 0:05:21]} 8. Bg5 {[%emt 0:03:13] Black has an edge.} h6 {[%emt 0:03:22]} (8... O-O $142) 9. Bxf6 $11 {[%emt 0:00:15]} Qxf6 {[%emt 0:01:05]} 10. Nc3 {[%emt 0:00:17]} Bb4 {[%emt 0:13:17]} 11. O-O {[%emt 0:01:50]} Bxc3 {[%emt 0:00:25]} 12. bxc3 {[%emt 0:00:06]} O-O {[%emt 0:00:21]} 13. d4 {[%emt 0:04:31]} e4 {[%emt 0:08:34]} 14. Nd2 {[%emt 0:00:14][%cal Bf3d2,Bd2c4,Bc4e3][%mdl 32]} Bg4 {[%emt 0:01:32]} 15. f3 {[%emt 0:13:39]} exf3 {[%emt 0:04:05][%cal Ob7b5]} 16. exf3 {[%emt 0:00:33]} Bf5 {[%emt 0:01:47]} 17. f4 {[%emt 0:09:08]} Qd6 {[%emt 0:00:30]} 18. Qb5 {[%emt 0:03:03]} Rfd8 {[%emt 0:02:15]} 19. Nc4 {[%emt 0:01:12]} Qc7 {[%emt 0:11:44]} 20. Ne3 {[%emt 0:01:09]} Ne7 {[%emt 0:03:44]} 21. Rac1 {[%emt 0:00:37][%cal Re3d5]} (21. Bxd5 Bd7 22. Qb3 Nxd5 23. Nxd5 Qd6 $18) 21... a6 {[%emt 0:06:16]} 22. Qe2 {[%emt 0:03:02]} Re8 {[%emt 0:05:28]} 23. Qf2 {[%emt 0:03:02]} Qd7 {[%emt 0:00:32]} 24. Nxf5 {[%emt 0:01:35]} Qxf5 {[%emt 0:00:50]} (24... Nxf5 $11 {should be considered.} 25. Rfe1 Rad8) 25. Rfe1 {[%emt 0:00:07]} Nc6 {[%emt 0:01:04] Inhibits Re5.} 26. Qf3 {[%emt 0:00:42]} Rad8 {[%emt 0:01:22]} (26... Rxe1+ $11 27. Rxe1 Rd8) 27. Rxe8+ $16 {[%emt 0:04:03]} Rxe8 {[%emt 0:00:04][%cal Bd8e8,Be8e3,Be3c3,Bc3d3,Bd3d2][%mdl 32]} 28. Qxd5 {[%emt 0:00:09]} Qd3 {[%emt 0:00:13] ( -> ...Qe3+)} 29. Qf3 {[%emt 0:00:23]} Re3 {[%emt 0:05:09]} 30. Qd1 {[%emt 0:02:30]} ({Better is} 30. Qf2 $1 $16) 30... Qxd1+ $11 {[%emt 0:02:39]} 31. Rxd1 {[%emt 0:00:07] Threatens to win with d5.} Rxc3 {[%emt 0:00:00][%mdl 4096] Endgame. KRB-KRN} 32. d5 {[%emt 0:01:24]} Nd8 {[%emt 0:00:02]} 33. Re1 {[%emt 0:02:45]} Kf8 {[%emt 0:00:32] Dodges Re8+} 34. Bh3 {[%emt 0:01:27] Hoping for Bd7.} Rd3 {[%emt 0:02:39]} 35. Bd7 {[%emt 0:00:06][%csl Gd7][%cal Re1e8]} g6 {[%emt 0:01:37]} 36. Re5 {[%emt 0:03:41]} Rd2 {[%emt 0:01:27]} 37. h4 {[%emt 0:00:56]} (37. Re8+ Kg7 $17) 37... Kg7 {[%emt 0:01:08]} 38. g4 {[%emt 0:01:52]} (38. a4 $11 {remains equal.}) 38... Rxa2 $17 {[%emt 0:00:39] Black is more active.} 39. Re8 {[%emt 0:00:10] [#]} Rd2 $1 {[%emt 0:00:11]} 40. Rxd8 {[%emt 0:02:41] Strongly threatening Be8.} Rxd5 $19 {[%emt 0:00:16] KRB-KR} 41. Kf2 {[%emt 0:30:09] [#]} (41. g5 $17 {is a better defense.}) 41... Kf6 $1 {[%emt 0:31:13]} 42. f5 {[%emt 0:00:13] [#]} (42. Kf3 $142) 42... gxf5 $1 {[%emt 0:00:53]} (42... Ke7 43. fxg6 fxg6 (43... Kxd8 $2 {perishes.} 44. g7 $18) 44. Rg8 Kxd7 (44... Rxd7 45. Rxg6 a5 46. Rxh6 $11) 45. Rg7+ Ke8 46. Rxb7 $15) 43. Rg8 $2 {[%emt 0:02:29]} (43. gxf5 Rd6 (43... Ke7 44. Rh8 $17) 44. Rh8 Rxd7 45. Rxh6+ Kxf5 46. Kf3) 43... Rxd7 {[%emt 0:00:18] Black is clearly winning.} 44. g5+ {[%emt 0:00:15]} hxg5 {[%emt 0:00:33]} 45. h5 {[%emt 0:00:12]} Rd4 {[%emt 0:00:38]} 46. Rb8 {[%emt 0:00:23]} Rh4 {[%emt 0:00:26] Weighted Error Value: White=0.47/Black=0.18 (very precise) .  Mistake:       	White=5     	Black=3      Inaccurate:     	White=5     	Black=1      OK:         	White=14    	Black=19     Best:        	White=4     	Black=3      Strong:       	---       	Black=2} 0-1

[Event "Serbian League 2024"]
[Site "Bajina Basta"]
[Date "2024.10.01"]
[Round "5.18"]
[White "Pezelj, Novak"]
[Black "Zivanovic, Bojan"]
[Result "1/2-1/2"]
[Annotator "TA"]
[ECO "D45"]
[WhiteElo "2460"]
[BlackElo "2161"]
[PlyCount "40"]
[EventDate "2024.09.26"]
[EventType "team-tourn"]
[EventCountry "SRB"]
[SourceTitle "playchess.com"]
[Source "ChessBase"]
[SourceQuality "1"]
[TimeControl "40/5400+30:1800+30"]

{[%evp 16,40,42,0,0,0,0,0,0,3,0,0,0,0,0,0,0,-6,0,-2,-9,-19,-11,-18,-8,-6,14]} 1. d4 {[%emt 0:00:07]} d5 {[%emt 0:00:55]} 2. c4 {[%emt 0:00:48]} c6 {[%emt 0:01:39]} 3. Nc3 {[%emt 0:02:23]} Nf6 {[%emt 0:01:35]} 4. e3 {[%emt 0:01:52]} e6 {[%emt 0:03:58][%cal Be7e6,Be6e5][%mdl 32]} 5. Nf3 {[%emt 0:04:30]} Bd6 {[%emt 0:04:15]} 6. Bd3 {[%emt 0:02:55]} O-O {[%emt 0:00:36]} 7. O-O {[%emt 0:05:27]} dxc4 {[%emt 0:28:12]} 8. Bxc4 {[%emt 0:00:07]} Nbd7 {[%emt 0:00:06][%cal Bb8d7,Bd7b6,Bb6d5][%mdl 32]} 9. a4 {[%emt 0:21:08]} e5 {[%emt 0:11:56] The position is equal.} 10. a5 {[%emt 0:09:34]} h6 {[%emt 0:07:11]} 11. Nh4 {[%emt 0:05:14]} b5 {[%emt 0:11:42]} 12. axb6 {[%emt 0:21:47]} Nxb6 {[%emt 0:00:15]} 13. Bb3 {[%emt 0:03:48]} exd4 {[%emt 0:00:49]} 14. exd4 {[%emt 0:00:31]} Nbd5 {[%emt 0:02:49][%cal Od6h2]} 15. Nf3 {[%emt 0:05:19]} Re8 {[%emt 0:07:37]} 16. Ba4 {[%emt 0:01:43]} Bd7 {[%emt 0:14:55]} 17. Bd2 {[%emt 0:02:16]} Rb8 {[%emt 0:00:00]} 18. Nxd5 {[%emt 0:01:32]} cxd5 {[%emt 0:00:00]} 19. Ba5 {[%emt 0:00:32]} Bxa4 {[%emt 0:00:00]} ({Weaker is} 19... Qxa5 20. Bxd7 $18) 20. Qxa4 {[%emt 0:00:22]} Qd7 {[%emt 0:00:00] Not much happened in this game.   Weighted Error Value: White=0.04 (flawless) /Black=0.01 (flawless) .  OK:         	White=4     	Black=4} 1/2-1/2

[Event "Serbian League 2024"]
[Site "Bajina Basta"]
[Date "2024.10.01"]
[Round "5.19"]
[White "Andreikin, Dmitry"]
[Black "Krstulovic, Alex"]
[Result "1/2-1/2"]
[Annotator "TA"]
[ECO "C26"]
[WhiteElo "2729"]
[BlackElo "2452"]
[PlyCount "77"]
[EventDate "2024.09.26"]
[EventType "team-tourn"]
[EventCountry "SRB"]
[SourceTitle "playchess.com"]
[Source "ChessBase"]
[SourceQuality "1"]
[TimeControl "40/5400+30:1800+30"]

{[%evp 13,77,-3,0,0,0,-5,0,0,0,0,-8,-9,-8,-15,-10,-8,-4,-6,-12,-17,18,15,19,4,41,16,35,10,25,16,24,0,0,0,0,0,0,-6,0,0,0,0,-8,-2,5,-1,109,97,106,28,39,33,39,0,0,0,0,-11,-8,-20,-22,-14,-18,-30,-24,-84]} 1. e4 {[%emt 0:00:05]} e5 {[%emt 0:02:49]} 2. Nf3 {[%emt 0:00:14]} Nc6 {[%emt 0:00:04]} 3. g3 {[%emt 0:00:20]} Nf6 {[%emt 0:04:37]} 4. d3 {[%emt 0:00:39]} Bc5 {[%emt 0:05:01]} 5. Bg2 {[%emt 0:00:20]} d6 {[%emt 0:04:03]} 6. O-O {[%emt 0:01:16]} h6 {[%emt 0:01:12]} 7. Nc3 {[%emt 0:00:31]} a6 {[%emt 0:01:36]} 8. Be3 {[%emt 0:00:47]} Bxe3 {[%emt 0:05:39]} 9. fxe3 {[%emt 0:00:11]} Bg4 {[%emt 0:00:07]} 10. Qd2 {[%emt 0:00:44] The position is equal.} Ne7 {[%emt 0:22:44]} 11. Nh4 {[%emt 0:01:05]} c6 {[%emt 0:00:13]} 12. a4 {[%emt 0:05:41]} a5 {[%emt 0:02:38]} 13. Kh1 {[%emt 0:04:25]} Qd7 {[%emt 0:03:46]} 14. d4 {[%emt 0:03:30]} O-O {[%emt 0:03:19]} 15. Rf2 {[%emt 0:08:02]} Nh7 {[%emt 0:07:55]} 16. Raf1 {[%emt 0:06:07]} g6 {[%emt 0:02:05]} 17. Nf3 {[%emt 0:01:39]} Qe6 {[%emt 0:04:35]} 18. Ng1 {[%emt 0:01:14] h3 would now be deadly.} Qc4 {[%emt 0:07:33]} 19. dxe5 {[%emt 0:06:24]} dxe5 {[%emt 0:00:15]} 20. Qd6 $1 {[%emt 0:00:05][%csl LRe5,LRe7]} Rae8 {[%emt 0:05:51]} 21. Qxe5 {[%emt 0:02:12]} Qb4 {[%emt 0:00:07]} 22. Qf4 {[%emt 0:11:31]} h5 {[%emt 0:03:55]} ({But not} 22... Qxb2 $6 23. Qxg4 Qxc3 24. Qd7 $16) 23. h3 {[%emt 0:05:02]} g5 {[%emt 0:02:21]} 24. Qc7 {[%emt 0:00:59]} Be6 {[%emt 0:00:07][%cal Oe7c8]} 25. Rd2 {[%emt 0:07:42]} Nc8 {[%emt 0:02:27][%cal Oc8b6]} 26. Rd4 {[%emt 0:03:26]} Qxb2 {[%emt 0:00:58]} 27. Qxa5 {[%emt 0:02:20]} b6 {[%emt 0:00:05]} 28. Qb4 {[%emt 0:00:10]} Qxc2 {[%emt 0:00:05] White must now prevent ...c5.} 29. Qa3 {[%emt 0:00:32]} Qb3 {[%emt 0:06:19] [#]} (29... c5 $11 30. Rdd1 Rd8) 30. Qa1 $1 $16 {[%emt 0:00:18] White is more active.} c5 {[%emt 0:00:42] [#]} 31. Rdd1 {[%emt 0:05:21]} (31. Rd2 $1 $16 {Strongly threatening Rb1.} Qb4 32. Nf3) 31... Rd8 $11 {[%emt 0:00:15]} 32. Rb1 {[%emt 0:00:25]} Qc2 {[%emt 0:01:03]} 33. Nd5 {[%emt 0:00:14]} Bxd5 {[%emt 0:00:54]} 34. exd5 {[%emt 0:00:05]} Rfe8 {[%emt 0:00:25][%cal Oc8d6]} 35. a5 {[%emt 0:09:11]} bxa5 {[%emt 0:00:31]} 36. Qxa5 {[%emt 0:00:07]} Nd6 {[%emt 0:00:25][%cal Od8a8]} 37. Qc7 {[%emt 0:00:05]} Nf8 {[%emt 0:01:28][%cal Od8d7] ...Rd7! is the strong threat.} 38. Rbc1 {[%emt 0:05:20]} Qg6 {[%emt 0:00:44] Hoping for ...Rc8.} 39. Kh2 {[%emt 0:04:35] Weighted Error Value: White=0.09 (flawless) /Black=0.08 (flawless) .  Mistake:       	White=2     	Black=1      Inaccurate:     	White=1     	Black=2      OK:         	White=14    	Black=19     Best:        	White=2     	---        Strong:       	White=2     	---} (39. Rxc5 $11 {keeps the balance.} Rc8 40. Qa5) 1/2-1/2

[Event "Serbian League 2024"]
[Site "Bajina Basta"]
[Date "2024.10.01"]
[Round "5.20"]
[White "Popovic, Dusan"]
[Black "Matlakov, Maxim"]
[Result "0-1"]
[Annotator "TA"]
[ECO "B30"]
[WhiteElo "2494"]
[BlackElo "2636"]
[PlyCount "66"]
[EventDate "2024.09.26"]
[EventType "team-tourn"]
[EventCountry "SRB"]
[SourceTitle "playchess.com"]
[Source "ChessBase"]
[SourceQuality "1"]
[TimeControl "40/5400+30:1800+30"]

{[%evp 12,66,20,-5,0,-8,13,1,22,0,0,24,0,-36,-30,-40,-35,-34,-9,-38,-38,-31,-29,-45,-28,-44,-40,-105,-87,-203,-197,-244,-241,-322,-274,-420,-398,-524,-500,-518,-508,-501,-516,-1243,-1147,-1238,-1229,-29981,-1115,-29982,-181,-5775,-5675,-2295,-2204,-1578,-919]} 1. e4 {[%emt 0:00:05]} c5 {[%emt 0:00:11]} 2. Nf3 {[%emt 0:00:07]} Nc6 {[%emt 0:00:06]} 3. Bb5 {[%emt 0:00:45]} e6 {[%emt 0:00:55]} 4. O-O {[%emt 0:00:44]} Nge7 {[%emt 0:00:32]} 5. Re1 {[%emt 0:01:45]} a6 {[%emt 0:01:06]} 6. Bf1 {[%emt 0:00:06]} d5 {[%emt 0:00:11]} 7. d3 {[%emt 0:00:48]} d4 {[%emt 0:00:20]} 8. e5 {[%emt 0:01:21]} Ng6 {[%emt 0:00:27]} 9. g3 {[%emt 0:13:42]} Qc7 {[%emt 0:01:00][%cal Rc6e5] The position is equal.} 10. Qe2 {[%emt 0:02:07]} f6 {[%emt 0:01:03]} 11. exf6 {[%emt 0:05:26]} gxf6 {[%emt 0:00:18]} 12. Bh3 {[%emt 0:07:29]} e5 {[%emt 0:05:54]} 13. Bxc8 {[%emt 0:00:38]} Qxc8 {[%emt 0:01:31]} 14. Nbd2 {[%emt 0:03:43]} Qe6 {[%emt 0:11:32]} 15. c3 {[%emt 0:02:27]} O-O-O {[%emt 0:08:04]} 16. cxd4 {[%emt 0:04:38]} cxd4 {[%emt 0:01:39]} 17. Nc4 {[%emt 0:04:34]} h5 {[%emt 0:03:17]} 18. Bd2 {[%emt 0:06:01][%cal Ob2b4]} Kb8 {[%emt 0:02:51]} 19. Rab1 {[%emt 0:11:33] Black keeps a firm grip on the game.} (19. Qe4 $15 Qg4 20. a3) 19... h4 $17 {[%emt 0:22:51]} 20. a4 {[%emt 0:12:51]} (20. Qe4 $17 f5 21. Qe2 (21. Ng5 Qxc4 22. dxc4 fxe4 $11)) 20... Bb4 $19 {[%emt 0:02:08]} 21. Bxb4 {[%emt 0:11:56]} (21. Kh1 $142) 21... Nxb4 {[%emt 0:00:21]} 22. Qe4 {[%emt 0:01:31]} f5 {[%emt 0:16:52]} 23. Qe2 {[%emt 0:01:36] [#]} (23. Nxd4 $142 Qxc4 (23... Rxd4 24. Qxd4 Nc2 25. Qd6+ Qxd6 26. Nxd6 $16) 24. dxc4 fxe4 25. Ne6) 23... e4 $1 {[%emt 0:02:24][%mdl 512]} 24. Qd2 {[%emt 0:01:45]} (24. Ncd2 hxg3) 24... hxg3 {[%emt 0:05:26]} 25. fxg3 {[%emt 0:02:43]} Nxd3 {[%emt 0:01:33]} 26. Qxd3 {[%emt 0:00:56]} Ne5 {[%emt 0:00:29]} 27. Qb3 {[%emt 0:01:15]} (27. Ncxe5 $142 exd3 28. Rbd1) 27... Qxc4 {[%emt 0:03:30]} (27... exf3 28. Rxe5 f2+ 29. Kf1 $11 (29. Kxf2 $2 Rxh2+ 30. Ke1 Qh6 $19)) 28. Qxc4 {[%emt 0:00:22]} Nxf3+ {[%emt 0:02:59]} 29. Kg2 {[%emt 0:00:14]} Rxh2+ {[%emt 0:00:05]} (29... Nxe1+ $2 30. Rxe1 d3 31. Qc5 $18) 30. Kf1 {[%emt 0:00:02]} Nd2+ {[%emt 0:00:13]} (30... Rdh8 $142 31. g4 Nd2+ (31... fxg4 $2 32. Qd5 $19) 32. Kg1 Nxc4 33. Rbd1 Ne3 (33... Nxb2 34. Rxd4 Nd3 35. Rd8+ Rxd8 36. Kxh2 Nxe1 37. Kh3 f4 38. g5 f3 39. Kg3 e3 40. g6 f2 41. Kg4 f1=Q 42. Kg5 Rd5+ 43. Kh6 Qf6 44. Kh7 Rh5+ 45. Kg8 Rh8#) 34. Rxe3 dxe3 (34... Rh1+ {leads to mate.} 35. Kf2 Rxd1 36. g5 Rh2+ 37. Kg3 dxe3 38. Kf4 e2 39. g6 e1=Q 40. Ke5 Qg3+ 41. Kf6 Rd6+ 42. Ke7 Qe5+ 43. Kf8 Rh8+ 44. Kf7 Qf6#) 35. Rd8+ Rxd8 36. Kxh2 e2 (36... fxg4 {is a self mate.} 37. Kg2 Rf8 38. Kg3 e2 39. Kh4 g3 40. Kh3 e1=Q 41. Kg4 g2 42. Kg5 g1=Q+ 43. Kh6 Rh8#) 37. Kg3 e1=Q+ (37... e1=B+ {gets mated.} 38. Kf4 Bd2+ 39. Kg3 fxg4 40. Kxg4 Rf8 41. Kh5 e3 42. Kh6 e2+ 43. Kg7 Rf4 44. Kh6 e1=Q 45. Kh7 Qg3 46. Kh8 Rh4#) 38. Kf4 Qf2+ 39. Ke5 fxg4 (39... Qxb2+ 40. Ke6 Qd4 41. Kf7 Qd6 42. g5 Rd7+ 43. Kg8 Qg6+ 44. Kh8 Qh7#) 40. Ke6 e3 (40... Qxb2 41. Ke7 Rd5 42. Ke6 Qe5+ 43. Kf7 Rd7+ 44. Kg6 Rg7+ 45. Kh6 Qg5#) 41. Ke7 Qf8+ 42. Ke6 e2 43. Ke5 e1=Q#) 31. Kg1 {[%emt 0:00:14]} Rdh8 {[%emt 0:01:00] [#] ( -> ...Rh1+). Black is clearly winning.} 32. Qg8+ {[%emt 0:01:39]} Rxg8 {[%emt 0:00:07]} 33. Kxh2 {[%emt 0:00:05]} Nf3+ {[%emt 0:00:04] Weighted Error Value: White=0.86/Black=0.19 (very precise) .  Mistake:       	White=5     	---        Inaccurate:     	White=4     	---        OK:         	White=4     	Black=11     Best:        	White=1     	Black=3} 0-1

[Event "Serbian League 2024"]
[Site "Bajina Basta"]
[Date "2024.10.01"]
[Round "5.21"]
[White "Stojanovic, Mihajlo"]
[Black "Sedlak, Nikola"]
[Result "1/2-1/2"]
[Annotator "RC"]
[ECO "E61"]
[WhiteElo "2424"]
[BlackElo "2401"]
[PlyCount "46"]
[EventDate "2024.09.26"]
[EventType "team-tourn"]
[EventCountry "SRB"]
[SourceTitle "playchess.com"]
[Source "ChessBase"]
[SourceQuality "1"]
[TimeControl "40/5400+30:1800+30"]

1. Nf3 {[%emt 0:00:04]} Nf6 {[%emt 0:01:06]} 2. c4 {[%emt 0:00:08]} g6 {[%emt 0:01:20]} 3. Nc3 {[%emt 0:00:07]} d6 {[%emt 0:02:24]} 4. d4 {[%emt 0:03:02]} Bf5 {[%emt 0:02:27]} 5. e3 {[%emt 0:00:10]} Bg7 {[%emt 0:00:36]} 6. Bd3 {[%emt 0:00:04]} Bxd3 {[%emt 0:00:21]} 7. Qxd3 {[%emt 0:00:03]} O-O {[%emt 0:00:40]} 8. e4 {[%emt 0:02:01]} Nbd7 {[%emt 0:07:51]} 9. O-O {[%emt 0:00:44]} e5 {[%emt 0:01:27]} 10. Re1 {[%emt 0:05:40]} exd4 {[%emt 0:09:03]} 11. Nxd4 {[%emt 0:00:14]} Ng4 {[%emt 0:00:58]} 12. Nf3 {[%emt 0:07:42]} Re8 {[%emt 0:06:53]} 13. Bd2 {[%emt 0:13:07]} Nc5 {[%emt 0:06:32]} 14. Qc2 {[%emt 0:00:09]} Ne5 {[%emt 0:00:59]} 15. Nxe5 {[%emt 0:00:05]} dxe5 {[%emt 0:00:57]} 16. Be3 {[%emt 0:07:15]} Ne6 {[%emt 0:03:25]} 17. Ne2 {[%emt 0:00:07]} Nd4 {[%emt 0:07:01]} 18. Bxd4 {[%emt 0:00:09]} exd4 {[%emt 0:00:07]} 19. Nf4 {[%emt 0:03:05]} d3 {[%emt 0:02:38]} 20. Nxd3 {[%emt 0:00:13]} Qd4 {[%emt 0:00:09]} 21. e5 {[%emt 0:00:09]} Bxe5 {[%emt 0:00:26]} 22. Nxe5 {[%emt 0:00:17]} Rxe5 {[%emt 0:00:09]} 23. Rxe5 {[%emt 0:02:27]} Qxe5 {[%emt 0:00:14]} 1/2-1/2